fUST/lending_fUST_20251021
["ID","MTS","AMOUNT","RATE_DAILY","PERIOD"]
[391985106,1761057050264,-400000.0,0.0004161,5]
[391985107,1761057050275,-11883.53797228,0.0004161,15]
[391985108,1761057050285,-329.0,0.00041625,7]
[391985109,1761057050294,-8114.93805914,0.0004177,3]
[391985110,1761057050306,-472.1752932,0.00041841,30]
[391985111,1761057050316,-306.0,0.00041841,30]
[391985112,1761057050327,-163.278548,0.00041841,30]
[391985113,1761057050337,-589.8769586,0.00041841,30]
[391985114,1761057050349,-190.1756091,0.00041841,30]
[391985115,1761057050360,-163.278548,0.00041841,30]
[391985116,1761057050370,-589.8769586,0.00041841,30]
[391985117,1761057050381,-589.8769586,0.00041841,30]
[391985118,1761057050391,-161.5660891,0.00041841,30]
[391985119,1761057050401,-382.802855,0.00041981,30]
[391985120,1761057050414,-589.8769586,0.00041981,30]
[391985121,1761057050424,-308.1954585,0.00041981,30]
[391985122,1761057050435,-155.3766081,0.00041981,30]
[391985123,1761057050445,-597.2482508,0.00041981,30]
[391985124,1761057050455,-791.1772209,0.00041981,30]
[391985125,1761057050465,-589.8769586,0.00041981,30]
[391985126,1761057050476,-589.8769586,0.00041981,30]
[391985127,1761057050486,-589.8769586,0.00041981,30]
[391985128,1761057050499,-589.8769586,0.00041981,30]
[391985129,1761057050509,-1179.7539172,0.00041981,30]
[391985130,1761057050519,-595.0,0.00042,120]
[391985131,1761057050530,-1111.0,0.00042,30]
[391985132,1761057050540,-155.23324946,0.00042,120]
[391985133,1761057050552,-1298.0,0.00042,14]
[391985134,1761057050671,-1270.21469188,0.000422,120]
[391985135,1761057050683,-815.58,0.0004221,2]
[391985136,1761057050693,-3162.0,0.0004233,5]
[391985137,1761057050703,-168.63598432,0.00042979,30]
[391985138,1761057050713,-1111.0,0.00043,30]
[391985139,1761057050723,-1270.21469188,0.000435,120]
[391985140,1761057050732,-150.0,0.00043835,30]
[391985141,1761057050742,-500.0,0.00043835,120]
[391985142,1761057050752,-500.0,0.00043835,120]
[391985143,1761057050763,-500.0,0.00043835,7]
[391985144,1761057050773,-648.47,0.00043835,30]
[391985145,1761057050783,-500.0,0.00043835,7]
[391985146,1761057050793,-500.0,0.00043835,120]
[391985147,1761057050803,-1392.76,0.00043835,3]
[391985148,1761057050814,-500.0,0.00043835,120]
[391985149,1761057050824,-300.209022,0.00043835,120]
[391985150,1761057050834,-226.489352,0.00043835,120]
[391985151,1761057050844,-500.0,0.00043835,120]
[391985152,1761057050854,-500.0,0.00043835,120]
[391985153,1761057050864,-151.0,0.00043835,14]
[391985154,1761057050874,-151.0,0.00043835,120]
[391985155,1761057050885,-181.22010289,0.00043835,2]
[391985156,1761057050895,-151.0,0.00043835,14]
[391985157,1761057050905,-151.0,0.00043835,14]
[391985158,1761057050915,-150.0,0.00043835,30]
[391985159,1761057050925,-1572.9,0.00043874,30]
[391985160,1761057050936,-1111.0,0.00044,30]
[391985161,1761057050947,-269.46832843,0.00044107,2]
[391985162,1761057050957,-342.63919614,0.00044107,2]
[391985163,1761057050967,-150.0,0.00044109,30]
[391985164,1761057050977,-500.0,0.00044109,120]
[391985165,1761057050987,-500.0,0.00044109,120]
[391985166,1761057050998,-582.60249942,0.00044109,7]
[391985167,1761057051007,-648.47,0.00044109,30]
[391985168,1761057051018,-500.0,0.00044109,7]
[391985169,1761057051028,-500.0,0.00044109,120]
[391985170,1761057051038,-1392.76,0.00044109,3]
[391985171,1761057051048,-500.0,0.00044109,120]
[391985172,1761057051060,-500.0,0.00044109,120]
[391985173,1761057051070,-500.0,0.00044109,120]
[391985174,1761057051080,-198.479101,0.00044109,2]
[391985175,1761057051090,-632.0,0.00044119,2]
[391985176,1761057051100,-2164.0,0.00044119,2]
[391985177,1761057051110,-411.0,0.00044119,2]
[391985178,1761057051121,-411.0,0.00044119,2]
[391985179,1761057051131,-426.81050954,0.00044332,28]
[391985180,1761057051141,-500.0,0.00044345,30]
[391985181,1761057051151,-8114.93805914,0.00044373,3]
[391985182,1761057051161,-150.0,0.00044383,30]
[391985183,1761057051171,-500.0,0.00044383,120]
[391985184,1761057051180,-500.0,0.00044383,120]
[391985185,1761057051190,-648.47,0.00044383,30]
[391985186,1761057051200,-550.8835734,0.00044383,7]
[391985187,1761057051210,-500.0,0.00044383,120]
[391985188,1761057051220,-1392.76,0.00044383,3]
[391985189,1761057051230,-500.0,0.00044383,120]
[391985190,1761057051240,-500.0,0.00044383,120]
[391985191,1761057051250,-500.0,0.00044383,120]
[391985192,1761057051260,-16229.8761183,0.0004439,3]
[391985193,1761057051270,-628462.33551426,0.000444,2]
[391985194,1761057051281,-200.0,0.00044562,120]
[391985195,1761057051291,-1060.0,0.000446,14]
[391985196,1761057051303,-189.28462636,0.00044657,30]
[391985197,1761057051313,-500.0,0.00044657,120]
[391985198,1761057051323,-500.0,0.00044657,120]
[391985199,1761057051334,-648.47,0.00044657,30]
[391985200,1761057051345,-513.18661953,0.00044657,120]
[391985201,1761057051355,-1392.76,0.00044657,3]
[391985202,1761057051364,-500.0,0.00044657,120]
[391985203,1761057051374,-500.0,0.00044657,120]
[391985204,1761057051384,-500.0,0.00044657,120]
[391985205,1761057051393,-500.0,0.00044931,120]
[391985206,1761057051403,-500.0,0.00044931,120]
[391985207,1761057051412,-648.47,0.00044931,30]
[391985208,1761057051422,-1392.76,0.00044931,3]
[391985209,1761057051431,-500.0,0.00044931,120]
[391985210,1761057051440,-500.0,0.00044931,120]
[391985211,1761057051449,-500.0,0.00044931,120]
[391985212,1761057051459,-500.0,0.00045205,120]
[391985213,1761057051468,-500.0,0.00045205,120]
[391985214,1761057051478,-648.47,0.00045205,30]
[391985215,1761057051488,-1392.76,0.00045205,3]
[391985216,1761057051499,-500.0,0.00045205,120]
[391985217,1761057051509,-500.0,0.00045205,120]
[391985218,1761057051519,-500.0,0.00045205,120]
[391985219,1761057051528,-132837.5594,0.00045444,30]
[391985220,1761057051538,-151.0,0.00045444,14]
[391985221,1761057051547,-151.0,0.00045444,14]
[391985222,1761057051558,-175.412796,0.00045444,14]
[391985223,1761057051570,-500.0,0.00045479,120]
[391985224,1761057051579,-648.47,0.00045479,30]
[391985225,1761057051590,-1392.76,0.00045479,3]
[391985226,1761057051600,-500.0,0.00045479,120]
[391985227,1761057051610,-500.0,0.00045479,120]
[391985228,1761057051620,-500.0,0.00045479,120]
[391985229,1761057051630,-151.0,0.00045642,120]
[391985230,1761057051640,-152.012953,0.00045642,30]
[391985231,1761057051649,-151.0,0.00045642,120]
[391985232,1761057051659,-151.0,0.00045642,60]
[391985233,1761057051668,-578.150655,0.00045642,120]
[391985234,1761057051679,-578.150655,0.00045642,120]
[391985235,1761057051688,-578.150655,0.00045642,120]
[391985236,1761057051698,-151.0,0.00045642,120]
[391985237,1761057051707,-154.780251,0.00045642,120]
[391985238,1761057051717,-578.150655,0.00045642,120]
[391985239,1761057051727,-154.160189,0.00045642,120]
[391985240,1761057051738,-154.160189,0.00045642,120]
[391985241,1761057051748,-154.160189,0.00045642,120]
[391985242,1761057051758,-154.160189,0.00045642,120]
[391985243,1761057051768,-500.0,0.00045753,120]
[391985244,1761057051778,-648.47,0.00045753,30]
[391985245,1761057051788,-1392.76,0.00045753,3]
[391985246,1761057051798,-500.0,0.00045753,120]
[391985247,1761057051809,-500.0,0.00045753,120]
[391985248,1761057051819,-500.0,0.00045753,120]
[391985249,1761057051829,-1360.306728,0.00045872,2]
[391985250,1761057051838,-682.0,0.00045904,5]
[391985251,1761057051848,-500.0,0.00046027,120]
[391985252,1761057051858,-648.47,0.00046027,30]
[391985253,1761057051867,-1392.76,0.00046027,3]
[391985254,1761057051877,-500.0,0.00046027,120]
[391985255,1761057051886,-500.0,0.00046027,120]
[391985256,1761057051895,-500.0,0.00046027,120]
[391985257,1761057051905,-158.46756255,0.0004611,120]
[391985258,1761057051914,-500.0,0.00046301,120]
[391985259,1761057051923,-648.47,0.00046301,30]
[391985260,1761057051933,-1392.76,0.00046301,3]
[391985261,1761057051942,-500.0,0.00046301,120]
[391985262,1761057051952,-500.0,0.00046301,120]
[391985263,1761057051961,-500.0,0.00046301,120]
[391985264,1761057051971,-500.0,0.00046575,120]
[391985265,1761057051980,-648.47,0.00046575,30]
[391985266,1761057051990,-1392.76,0.00046575,3]
[391985267,1761057052000,-500.0,0.00046575,120]
[391985268,1761057052010,-500.0,0.00046575,120]
[391985269,1761057052019,-500.0,0.00046575,120]
[391985270,1761057052028,-158.46756255,0.00046603,120]
[391985271,1761057052038,-154.632396,0.00046678,10]
[391985272,1761057052047,-156.983889,0.00046678,10]
[391985273,1761057052060,-500.0,0.00046679,30]
[391985274,1761057052069,-500.0,0.00046849,120]
[391985275,1761057052079,-648.47,0.00046849,30]
[391985276,1761057052089,-1392.76,0.00046849,3]
[391985277,1761057052098,-500.0,0.00046849,120]
[391985278,1761057052108,-500.0,0.00046849,120]
[391985279,1761057052118,-500.0,0.00046849,120]
[391985280,1761057052127,-1747.65912081,0.00047008,30]
[391985281,1761057052137,-158.46756255,0.00047096,120]
[391985282,1761057052146,-632.0,0.00047119,2]
[391985283,1761057052155,-2164.0,0.00047119,2]
[391985284,1761057052164,-411.0,0.00047119,2]
[391985285,1761057052174,-411.0,0.00047119,2]
[391985286,1761057052183,-500.0,0.00047123,120]
[391985287,1761057052193,-648.47,0.00047123,30]
[391985288,1761057052203,-1392.76,0.00047123,3]
[391985289,1761057052213,-500.0,0.00047123,120]
[391985290,1761057052223,-500.0,0.00047123,120]
[391985291,1761057052233,-500.0,0.00047123,120]
[391985292,1761057052242,-199.0,0.0004733,73]
[391985293,1761057052251,-500.0,0.00047397,120]
[391985294,1761057052260,-648.47,0.00047397,30]
[391985295,1761057052270,-1392.76,0.00047397,3]
[391985296,1761057052279,-500.0,0.00047397,120]
[391985297,1761057052288,-500.0,0.00047397,120]
[391985298,1761057052298,-500.0,0.00047397,120]
[391985299,1761057052310,-426.81050954,0.000474,28]
[391985300,1761057052319,-644508.02637997,0.00047444,30]
[391985301,1761057052390,-388.65719743,0.00047444,30]
[391985302,1761057052401,-109510.0,0.00047444,30]
[391985303,1761057125107,1339.0,0.00030137,120]
[391985304,1761057167264,286.69,0.00023583,2]
[391985321,1761057251108,283.04,0.00023425,2]
[391985322,1761057266443,9742.605168,0.00034812,35]
[391985323,1761057335120,279.44,0.00023419,2]
[391985324,1761057419301,275.88,0.00023399,2]
[391985325,1761057460337,648.869306,0.00013699,2]
[391985326,1761057460565,648.869306,0.00020187,2]
[391985330,1761057501828,272.37,0.00023395,2]
[391985331,1761057504180,6379.23,0.00021,30]
[391985334,1761057586311,268.9,0.00023362,2]
[391985335,1761057621730,417.15472785,0.00024072,2]
[391985336,1761057670487,265.48,0.00023422,2]
[391985337,1761057685964,1099.13666015,0.00024072,2]
[391985338,1761057685990,3900.86333985,0.00024072,2]
[391985339,1761057708669,5000.0,0.00024072,2]
[391985340,1761057717198,1099.14666015,0.00024072,2]
[391985341,1761057717223,3900.85333985,0.00024072,2]
[391985342,1761057736498,914.68251905,0.00034812,90]
[391985343,1761057741027,4180.91573135,0.00024072,2]
[391985344,1761057754739,262.1,0.00023369,2]
[391985345,1761057839233,265.29,0.0002337,2]
[391985348,1761057843625,2000.0,0.00034812,35]
[391985349,1761057878200,2000.0,0.00034812,35]
[391985350,1761057913263,2000.0,0.00034812,35]
[391985352,1761057922409,261.92,0.00023364,2]
[391985354,1761057932006,5000.0,0.00024072,2]
[391985357,1761057948201,2000.0,0.00034812,35]
[391985358,1761057955015,4210.7,0.00024072,2]
[391985359,1761057955043,789.3,0.00024072,2]
[391985360,1761057979787,5000.0,0.00024072,2]
[391985361,1761057982367,2000.0,0.00034812,35]
[391985362,1761058004653,271.95,0.00023351,2]
[391985363,1761058017521,1377.71227999,0.00034812,35]
[391985364,1761058084684,539.43764158,0.00029271,120]
[391985365,1761058089234,268.49,0.00023337,2]
[391985367,1761058151257,-195.0,0.00024502,14]
[391985368,1761058151278,-412.0002776,0.0002467,2]
[391985369,1761058151300,-1079.44477318,0.00024748,2]
[391985379,1761058174101,265.07,0.00023335,2]
[391985403,1761058232112,502.51,0.00030137,120]
[391985408,1761058232434,-602.61685635,0.00024501,2]
[391985409,1761058232473,-1049.6,0.00024501,2]
[391985411,1761058232484,-3347.78314365,0.00024501,2]
[391985413,1761058232494,-215.0581854,0.00024839,2]
[391985415,1761058232505,-198.8,0.00025,2]
[391985416,1761058232516,-3202.0,0.00025,15]
[391985436,1761058232640,-205.51869585,0.00025927,2]
[391985439,1761058232653,-300.0,0.00025998,2]
[391985441,1761058232663,-300.0,0.00025998,2]
[391985443,1761058232672,-300.0,0.00025998,2]
[391985444,1761058232681,-300.0,0.00025998,2]
[391985445,1761058232690,-600.0,0.00025998,2]
[391985446,1761058232699,-300.0,0.00025998,2]
[391985447,1761058232708,-6033.55881783,0.00025999,2]
[391985448,1761058232719,-15781.41973526,0.00025999,2]
[391985449,1761058232728,-500.0,0.00025999,2]
[391985450,1761058232738,-500.0,0.00025999,2]
[391985451,1761058232747,-648.869306,0.00026676,2]
[391985452,1761058232759,-530.14,0.00027224,2]
[391985453,1761058232769,-500.0,0.00027975,2]
[391985454,1761058232778,-403.05172659,0.00028085,2]
[391985455,1761058232788,-420.0,0.00028136,2]
[391985456,1761058232798,-222.0,0.00028136,2]
[391985457,1761058232807,-254.0,0.00028136,2]
[391985458,1761058232816,-205.0,0.00028136,2]
[391985459,1761058232824,-160.0,0.00028416,2]
[391985460,1761058232833,-3474.2505916,0.00029274,2]
[391985461,1761058232841,-217.0,0.00030449,2]
[391985462,1761058232855,-202.71,0.00031,7]
[391985463,1761058232863,-795.21,0.00031113,2]
[391985464,1761058232872,-500.0,0.00031274,120]
[391985465,1761058232881,-429.11,0.00032173,15]
[391985466,1761058232889,-154.648,0.00032173,31]
[391985467,1761058232896,-250.0,0.00032375,2]
[391985468,1761058232904,-500.0,0.00032644,120]
[391985469,1761058232910,-500.0,0.00032876,120]
[391985470,1761058232917,-217.30625097,0.00032877,2]
[391985471,1761058232925,-648.869306,0.00033165,2]
[391985472,1761058232932,-379.02,0.000332,120]
[391985473,1761058232941,-534.7924973,0.000333,120]
[391985474,1761058232951,-1372.9965382,0.000333,120]
[391985475,1761058232960,-297.57011246,0.000333,120]
[391985476,1761058232970,-548.83729704,0.000333,120]
[391985477,1761058232980,-181.09763267,0.000333,120]
[391985478,1761058232990,-188.27459272,0.000333,120]
[391985479,1761058233000,-417.01124267,0.000333,120]
[391985480,1761058233012,-1598.93376131,0.000333,120]
[391985481,1761058233022,-576.91,0.00033911,30]
[391985483,1761058233031,-500.0,0.00033979,120]
[391985485,1761058233041,-1290.65954875,0.00034224,2]
[391985487,1761058233050,-534.7924973,0.000343,120]
[391985489,1761058233061,-1372.9965382,0.000343,120]
[391985491,1761058233070,-297.57011246,0.000343,120]
[391985493,1761058233079,-548.83729704,0.000343,120]
[391985494,1761058233088,-181.09763267,0.000343,120]
[391985496,1761058233097,-188.27459272,0.000343,120]
[391985498,1761058233107,-417.01124267,0.000343,120]
[391985500,1761058233117,-1598.93376131,0.000343,120]
[391985502,1761058233126,-403.05172659,0.000343,120]
[391985504,1761058233136,-151.0,0.000343,60]
[391985507,1761058233145,-267.76271467,0.000343,60]
[391985508,1761058233154,-151.0,0.000343,60]
[391985510,1761058233164,-151.0,0.000343,60]
[391985512,1761058233173,-151.0,0.000343,60]
[391985514,1761058233182,-151.0,0.000343,60]
[391985516,1761058233191,-151.0,0.000343,60]
[391985518,1761058233200,-500.0,0.000343,60]
[391985520,1761058233209,-500.0,0.000343,60]
[391985522,1761058233220,-254.14068666,0.000343,2]
[391985524,1761058233230,-364.51494269,0.00034354,7]
[391985526,1761058233240,-151.0,0.00034355,60]
[391985528,1761058233251,-500.0,0.00034355,60]
[391985529,1761058233262,-500.0,0.00034355,60]
[391985531,1761058233271,-198.0,0.0003441,60]
[391985533,1761058233280,-274.41244126,0.0003441,60]
[391985535,1761058233290,-500.0,0.0003441,60]
[391985537,1761058233300,-500.0,0.00034464,60]
[391985539,1761058233309,-500.0,0.00034499,120]
[391985541,1761058233318,-500.0,0.00034519,60]
[391985543,1761058233327,-500.0,0.00034711,120]
[391985545,1761058233337,-429.11,0.00034773,60]
[391985547,1761058233346,-160.0,0.000348,30]
[391985549,1761058233355,-500.0,0.00034811,120]
[391985551,1761058233364,-2003.19881394,0.00034812,120]
[391985552,1761058233373,-250.0,0.00034812,10]
[391985554,1761058233383,-250.0,0.00034812,10]
[391985556,1761058233391,-250.0,0.00034812,10]
[391985558,1761058233401,-250.0,0.00034812,10]
[391985560,1761058233411,-250.501735,0.00034812,10]
[391985562,1761058233420,-1444.0,0.00034849,120]
[391985564,1761058233430,-429.11,0.00034973,60]
[391985566,1761058233439,-1060.28,0.00035003,2]
[391985568,1761058233449,-429.11,0.00035173,60]
[391985570,1761058233459,-534.7924973,0.000353,120]
[391985572,1761058233469,-1372.9965382,0.000353,120]
[391985574,1761058233479,-548.83729704,0.000353,120]
[391985576,1761058233488,-297.57011246,0.000353,120]
[391985578,1761058233498,-181.09763267,0.000353,120]
[391985580,1761058233510,-417.01124267,0.000353,120]
[391985582,1761058233519,-1598.93376131,0.000353,120]
[391985584,1761058233529,-623.97361394,0.00035664,2]
[391985586,1761058233538,-473.25744716,0.00035971,5]
[391985588,1761058233548,-572.63994276,0.00036182,5]
[391985590,1761058233558,-500.0,0.00036182,5]
[391985592,1761058233568,-355.63868615,0.00036399,120]
[391985594,1761058233577,-534.7924973,0.000364,120]
[391985596,1761058233587,-1372.9965382,0.000364,120]
[391985598,1761058233596,-548.83729704,0.000364,120]
[391985600,1761058233605,-297.57011246,0.000364,120]
[391985602,1761058233614,-417.01124267,0.000364,120]
[391985604,1761058233624,-1598.93376131,0.000364,120]
[391985606,1761058233633,-487.51533589,0.00036581,2]
[391985608,1761058233643,-503.36300446,0.0003673,5]
[391985609,1761058233652,-156.52430034,0.00036822,2]
[391985611,1761058233661,-500.0,0.00037499,120]
[391985613,1761058233671,-534.7924973,0.000375,120]
[391985615,1761058233680,-1372.9965382,0.000375,120]
[391985617,1761058233689,-297.57011246,0.000375,120]
[391985619,1761058233698,-548.83729704,0.000375,120]
[391985621,1761058233708,-417.01124267,0.000375,120]
[391985623,1761058233717,-1598.93376131,0.000375,120]
[391985625,1761058233726,-1598.93376131,0.000386,120]
[391985627,1761058233735,-159.885584,0.00038609,20]
[391985629,1761058233744,-168.0,0.0003872,2]
[391985631,1761058233757,-168.0,0.00038736,2]
[391985633,1761058233767,-168.0,0.0003874,7]
[391985635,1761058233776,-237.68317294,0.00038795,7]
[391985637,1761058233787,-1325.35,0.00038892,2]
[391985639,1761058233797,-168.0,0.000389,2]
[391985641,1761058233806,-150.0,0.00038939,30]
[391985643,1761058233816,-168.0,0.00039241,7]
[391985645,1761058233825,-1363.61,0.00039561,10]
[391985646,1761058233834,-1636.33,0.00039571,10]
[391985648,1761058233844,-2073.51190324,0.00039571,3]
[391985650,1761058233857,-655.02085835,0.00039571,3]
[391985652,1761058233867,-632.0,0.00039581,2]
[391985654,1761058233876,-983.0,0.00039581,2]
[391985656,1761058233886,-2164.0,0.00039581,2]
[391985658,1761058233896,-5626.0,0.00039581,120]
[391985660,1761058233906,-251.32,0.00039581,2]
[391985662,1761058233915,-648.869306,0.00039654,2]
[391985664,1761058233926,-168.0,0.00039665,2]
[391985666,1761058233936,-491.90045408,0.00039759,120]
[391985668,1761058233945,-500.0,0.00039762,7]
[391985670,1761058233954,-150.0,0.00039762,60]
[391985672,1761058233964,-2999.0,0.00039798,120]
[391985674,1761058233973,-1598.93376131,0.000398,120]
[391985676,1761058233982,-168.0,0.00039817,2]
[391985678,1761058233992,-168.0,0.00040212,2]
[391985680,1761058234001,-168.0,0.00040272,2]
[391985682,1761058234014,-168.0,0.00040305,7]
[391985684,1761058234023,-168.0,0.00040472,120]
[391985686,1761058234032,-168.0,0.00040496,120]
[391985688,1761058234042,-168.0,0.000407,2]
[391985690,1761058234051,-500.0,0.00040986,60]
[391985692,1761058234062,-1598.93376131,0.00041,120]
[391985693,1761058234072,-168.0,0.00041171,2]
[391985695,1761058234082,-168.0,0.0004135,2]
[391985697,1761058234091,-1000.0,0.0004159,60]
[391985698,1761058234101,-151.0,0.00041609,60]
[391985699,1761058234110,-168.0,0.00041817,7]
[391985700,1761058234119,-168.0,0.00041885,2]
[391985701,1761058234129,-501.53946441,0.00041988,15]
[391985702,1761058234139,-500.0,0.00041988,15]
[391985703,1761058234148,-1598.93376131,0.000422,120]
[391985704,1761058234158,-519.2,0.000422,14]
[391985705,1761058234167,-159.885584,0.00042406,20]
[391985706,1761058234177,-160.688409,0.00042406,20]
[391985707,1761058234186,-632.0,0.00042581,2]
[391985708,1761058234196,-983.0,0.00042581,2]
[391985709,1761058234205,-2164.0,0.00042581,2]
[391985710,1761058234214,-150.0,0.00042581,2]
[391985711,1761058234224,-1590.41,0.00042781,2]
[391985712,1761058234234,-168.63598432,0.00042979,30]
[391985713,1761058234243,-1598.93376131,0.000435,120]
[391985714,1761058234253,-500.0,0.00043835,30]
[391985715,1761058234264,-500.0,0.00043835,2]
[391985716,1761058234273,-500.0,0.00043835,7]
[391985717,1761058234282,-500.0,0.00043835,120]
[391985718,1761058234292,-500.0,0.00043835,30]
[391985719,1761058234302,-500.0,0.00043835,2]
[391985720,1761058234311,-500.0,0.00043835,20]
[391985721,1761058234321,-501.09870338,0.00043835,20]
[391985723,1761058234330,-361.71112355,0.00043835,120]
[391985724,1761058234340,-508.70777017,0.00043835,120]
[391985725,1761058234350,-500.0,0.00043835,120]
[391985726,1761058234359,-500.0,0.00043835,7]
[391985727,1761058234369,-3498.25,0.00043835,2]
[391985728,1761058234378,-502.74386,0.00043835,120]
[391985729,1761058234388,-500.0,0.00043835,120]
[391985730,1761058234398,-500.0,0.00043835,30]
[391985731,1761058234407,-500.0,0.00043835,7]
[391985732,1761058234417,-500.0,0.00043835,120]
[391985733,1761058234426,-500.0,0.00043835,2]
[391985734,1761058234436,-580.32,0.00043835,3]
[391985735,1761058234445,-500.0,0.00043835,120]
[391985736,1761058234455,-500.0,0.00043835,120]
[391985737,1761058234464,-625.45,0.00043835,120]
[391985738,1761058234474,-500.0,0.00043835,120]
[391985739,1761058234483,-500.0,0.00043835,120]
[391985740,1761058234492,-500.0,0.00043871,2]
[391985741,1761058234502,-2073.51190324,0.00044099,3]
[391985742,1761058234517,-655.02085835,0.00044099,3]
[391985743,1761058234526,-540.0,0.00044109,30]
[391985744,1761058234535,-500.0,0.00044109,2]
[391985745,1761058234545,-500.0,0.00044109,7]
[391985746,1761058234554,-500.0,0.00044109,120]
[391985747,1761058234564,-500.0,0.00044109,30]
[391985748,1761058234574,-500.0,0.00044109,2]
[391985749,1761058234583,-500.0,0.00044109,20]
[391985750,1761058234596,-500.0,0.00044109,120]
[391985751,1761058234606,-500.0,0.00044109,7]
[391985752,1761058234616,-3498.25,0.00044109,2]
[391985753,1761058234625,-500.0,0.00044109,120]
[391985754,1761058234635,-500.0,0.00044109,30]
[391985755,1761058234644,-500.0,0.00044109,7]
[391985756,1761058234654,-500.0,0.00044109,120]
[391985757,1761058234663,-500.0,0.00044109,2]
[391985758,1761058234674,-580.32,0.00044109,3]
[391985759,1761058234683,-500.0,0.00044109,120]
[391985760,1761058234693,-500.0,0.00044109,120]
[391985761,1761058234702,-500.0,0.00044109,120]
[391985762,1761058234711,-641.0820001,0.00044109,120]
[391985763,1761058234721,-500.0,0.00044383,2]
[391985764,1761058234730,-500.0,0.00044383,7]
[391985765,1761058234740,-500.0,0.00044383,120]
[391985766,1761058234749,-500.0,0.00044383,30]
[391985767,1761058234763,-500.0,0.00044383,2]
[391985768,1761058234772,-500.0,0.00044383,20]
[391985769,1761058234782,-500.0,0.00044383,120]
[391985770,1761058234791,-500.0,0.00044383,7]
[391985771,1761058234801,-3498.25,0.00044383,2]
[391985772,1761058234811,-500.0,0.00044383,120]
[391985773,1761058234821,-500.0,0.00044383,30]
[391985774,1761058234831,-500.0,0.00044383,7]
[391985775,1761058234841,-500.0,0.00044383,120]
[391985776,1761058234850,-500.0,0.00044383,2]
[391985777,1761058234865,-580.32,0.00044383,3]
[391985778,1761058234875,-500.0,0.00044383,120]
[391985779,1761058234884,-500.0,0.00044383,120]
[391985780,1761058234894,-500.0,0.00044383,120]
[391985781,1761058234904,-1111.41961782,0.00044419,2]
[391985782,1761058234913,-500.0,0.00044657,2]
[391985783,1761058234923,-500.0,0.00044657,7]
[391985784,1761058234932,-500.0,0.00044657,120]
[391985785,1761058234941,-500.0,0.00044657,30]
[391985786,1761058234951,-500.0,0.00044657,2]
[391985787,1761058234960,-500.0,0.00044657,20]
[391985788,1761058234970,-500.0,0.00044657,120]
[391985789,1761058234980,-500.0,0.00044657,7]
[391985790,1761058234989,-3498.25,0.00044657,2]
[391985791,1761058234999,-500.0,0.00044657,120]
[391985792,1761058235012,-500.0,0.00044657,30]
[391985793,1761058235021,-500.0,0.00044657,7]
[391985794,1761058235033,-500.0,0.00044657,120]
[391985795,1761058235043,-157.35090723,0.00044657,2]
[391985796,1761058235053,-580.32,0.00044657,3]
[391985797,1761058235063,-470.10225692,0.00044657,120]
[391985798,1761058235072,-440.7019209,0.00044657,120]
[391985799,1761058235082,-500.0,0.00044657,120]
[391985800,1761058235090,-159.885584,0.0004486,2]
[391985801,1761058235100,-2073.51190324,0.00044921,3]